lending/lending_fUSD_20260330
["ID","MTS","AMOUNT","RATE_DAILY","PERIOD"]
[419075746,1774836641293,-199.64457884,0.0001,2]
[419075747,1774836641302,-197.90747316,0.0001,2]
[419075748,1774836641312,-152.40950624,0.0001,2]
[419075749,1774836641321,-546.37525153,0.0001,2]
[419075750,1774836641331,-278.25591436,0.0001,2]
[419075751,1774836641340,-500.0,0.0001,2]
[419075752,1774836641350,-500.0,0.0001,2]
[419075753,1774836641359,-500.0,0.0001,2]
[419075754,1774836641369,-500.0,0.0001,2]
[419075755,1774836641378,-500.0,0.0001,2]
[419075756,1774836641387,-500.0,0.0001,2]
[419075757,1774836641397,-500.0,0.0001,2]
[419075758,1774836641407,-500.0,0.0001,2]
[419075759,1774836641416,-500.0,0.0001,2]
[419075761,1774836641425,-500.0,0.0001,2]
[419075769,1774836641861,-500.0,0.0001,2]
[419075770,1774836641889,-500.0,0.0001,2]
[419075771,1774836641898,-500.0,0.0001,2]
[419075772,1774836641908,-500.0,0.0001,2]
[419075773,1774836641918,-500.0,0.0001,2]
[419075774,1774836641928,-500.0,0.0001,2]
[419075775,1774836641937,-500.0,0.0001,2]
[419075776,1774836641946,-500.0,0.0001,2]
[419075777,1774836641956,-500.0,0.0001,2]
[419075778,1774836641965,-500.0,0.0001,2]
[419075779,1774836641974,-200.0,0.0001,2]
[419075780,1774836641983,-500.0,0.0001,2]
[419075781,1774836641992,-500.0,0.0001,2]
[419075782,1774836642001,-151.0,0.0001,2]
[419075783,1774836642010,-151.0,0.0001,2]
[419075784,1774836642019,-151.0,0.0001,2]
[419075785,1774836642028,-151.0,0.0001,2]
[419075786,1774836642038,-151.0,0.0001,2]
[419075787,1774836642047,-151.0,0.0001,2]
[419075788,1774836642056,-151.0,0.0001,2]
[419075789,1774836642068,-180.74656957,0.0001,2]
[419075790,1774836642079,-151.0,0.0001,2]
[419075791,1774836642088,-1443.27779277,0.0001,2]
[419075792,1774836642098,-151.0,0.0001,2]
[419075793,1774836642107,-151.0,0.0001,2]
[419075794,1774836642116,-151.0,0.0001,2]
[419075795,1774836642126,-151.0,0.0001,2]
[419075796,1774836642135,-151.0,0.0001,2]
[419075797,1774836642145,-151.0,0.0001,2]
[419075798,1774836642154,-151.0,0.0001,2]
[419075799,1774836642163,-151.0,0.0001,2]
[419075800,1774836642173,-151.0,0.0001,2]
[419075801,1774836642183,-151.0,0.0001,2]
[419075802,1774836642192,-151.0,0.0001,2]
[419075803,1774836642202,-151.0,0.0001,2]
[419075804,1774836642212,-151.0,0.0001,2]
[419075806,1774836642222,-151.0,0.0001,2]
[419075808,1774836642231,-298.09704378,0.0001,2]
[419075809,1774836642241,-500.0,0.0001,2]
[419075810,1774836642250,-218.64346577,0.0001,2]
[419075811,1774836642260,-261.50854217,0.000101,2]
[419075812,1774836642269,-1102.45109965,0.00010128,2]
[419075813,1774836642279,-500.0,0.00010274,2]
[419075814,1774836642288,-1600.0,0.0001054,2]
[419075815,1774836642297,-4939.35,0.00010548,2]
[419075816,1774836642307,-299.99,0.00010548,2]
[419075817,1774836642319,-9999.99,0.00010548,2]
[419075819,1774836642328,-9999.99,0.00010548,2]
[419075822,1774836642338,-1031.33,0.00010548,2]
[419075824,1774836642348,-2495.45,0.00010548,2]
[419075826,1774836642358,-150.99,0.00010548,2]
[419075828,1774836642367,-500.0,0.00010548,2]
[419075829,1774836642376,-200.0,0.00010548,2]
[419075830,1774836642385,-152.82264291,0.00010548,2]
[419075831,1774836642395,-4243.49,0.00010691,2]
[419075832,1774836642404,-270.09856999,0.000107,2]
[419075833,1774836642414,-1003.81201125,0.0001075,30]
[419075834,1774836642424,-151.0,0.00010808,2]
[419075835,1774836642433,-500.0,0.00010822,2]
[419075836,1774836642443,-433.0,0.00010826,2]
[419075837,1774836642452,-2351.0,0.00010826,2]
[419075838,1774836642462,-587.0,0.00010826,2]
[419075839,1774836642471,-500.0,0.0001083,2]
[419075840,1774836642480,-600.0,0.000109,3]
[419075841,1774836642490,-500.0,0.00010959,2]
[419075842,1774836642499,-157.8,0.00010959,2]
[419075843,1774836642508,-150.0,0.00011,2]
[419075844,1774836642518,-2249.48823067,0.00011,2]
[419075845,1774836642527,-167.0,0.0001109,2]
[419075846,1774836642537,-500.0,0.00011096,2]
[419075847,1774836642546,-200.0,0.00011096,2]
[419075848,1774836642556,-15910.7165524,0.00011099,2]
[419075849,1774836642565,-15910.71655236,0.00011099,2]
[419075850,1774836642575,-15910.71655236,0.00011099,2]
[419075851,1774836642584,-4476.28546608,0.00011099,2]
[419075852,1774836642594,-4476.28546607,0.00011099,2]
[419075853,1774836642604,-4476.28546607,0.00011099,2]
[419075854,1774836642614,-454.44762194,0.00011112,2]
[419075855,1774836642624,-1498.0,0.0001119,2]
[419075856,1774836642633,-4476.28546607,0.00011199,2]
[419075857,1774836642643,-15910.71655236,0.00011199,2]
[419075858,1774836642653,-610.0,0.00011213,2]
[419075859,1774836642662,-152.53,0.00011233,2]
[419075860,1774836642672,-421.60378826,0.0001137,2]
[419075861,1774836642682,-276.62,0.00011407,2]
[419075862,1774836642691,-390.47,0.00011417,2]
[419075863,1774836642700,-200.0,0.00011644,2]
[419075864,1774836642710,-500.0,0.00011671,2]
[419075865,1774836642719,-250.0,0.00011824,2]
[419075866,1774836642729,-1600.0,0.00011858,2]
[419075867,1774836642739,-736.0,0.00011909,2]
[419075868,1774836642755,-3292.0,0.00011909,2]
[419075869,1774836642776,-823.0,0.00011909,2]
[419075870,1774836642787,-4476.28546607,0.00011982,2]
[419075871,1774836642796,-15910.71655236,0.00011982,2]
[419075872,1774836642805,-200.0,0.00012192,2]
[419075873,1774836642814,-196.8247,0.000125,7]
[419075874,1774836642824,-48004.48,0.00012579,2]
[419075875,1774836642833,-200.0,0.0001274,2]
[419075876,1774836642842,-4476.28546607,0.00012766,2]
[419075877,1774836642852,-15910.71655236,0.00012766,2]
[419075878,1774836642862,-1300.0,0.000128,4]
[419075879,1774836642871,-273.81,0.00012877,2]
[419075880,1774836642880,-212.88267633,0.00012888,2]
[419075881,1774836642889,-2000.0,0.000129,4]
[419075882,1774836642899,-250.0,0.00013,2]
[419075883,1774836642908,-1252.0,0.00013099,2]
[419075884,1774836642918,-4609.0,0.000131,2]
[419075885,1774836642927,-1152.0,0.000131,2]
[419075886,1774836642936,-200.0,0.00013151,2]
[419075887,1774836642946,-200.0,0.00013151,2]
[419075888,1774836642956,-200.0,0.00013151,2]
[419075889,1774836642965,-200.0,0.00013151,2]
[419075890,1774836642975,-200.0,0.00013151,2]
[419075891,1774836642984,-200.0,0.00013151,2]
[419075892,1774836642994,-200.0,0.00013151,2]
[419075893,1774836643003,-200.0,0.00013151,2]
[419075894,1774836643013,-200.0,0.00013151,2]
[419075895,1774836643023,-200.0,0.00013151,2]
[419075896,1774836643032,-200.0,0.00013151,2]
[419075897,1774836643042,-200.0,0.00013151,2]
[419075898,1774836643052,-200.0,0.00013151,2]
[419075899,1774836643063,-200.0,0.00013151,2]
[419075900,1774836643074,-200.0,0.00013151,2]
[419075901,1774836643085,-200.0,0.00013151,2]
[419075902,1774836643096,-200.0,0.00013151,2]
[419075903,1774836643106,-200.0,0.00013151,2]
[419075904,1774836643116,-200.0,0.00013151,2]
[419075905,1774836643126,-200.0,0.00013151,2]
[419075906,1774836643135,-200.0,0.00013151,2]
[419075907,1774836643145,-200.0,0.00013151,2]
[419075908,1774836643156,-200.0,0.00013151,2]
[419075909,1774836643166,-200.0,0.00013151,2]
[419075911,1774836643176,-200.0,0.00013151,2]
[419075913,1774836643186,-200.0,0.00013151,2]
[419075915,1774836643196,-200.0,0.00013151,2]
[419075916,1774836643206,-200.0,0.00013151,2]
[419075917,1774836643216,-200.0,0.00013151,2]
[419075918,1774836643225,-200.0,0.00013151,2]
[419075919,1774836643236,-200.0,0.00013151,2]
[419075920,1774836643246,-262.376114,0.00013151,2]
[419075922,1774836643257,-1600.0,0.00013175,2]
[419075923,1774836643268,-500.0,0.00013205,2]
[419075924,1774836643279,-654.74068051,0.0001325,2]
[419075925,1774836643289,-756.59196051,0.0001325,2]
[419075927,1774836643299,-1418.75412177,0.0001325,2]
[419075928,1774836643309,-200.0,0.00013288,2]
[419075929,1774836643319,-500.0,0.00013349,2]
[419075930,1774836643328,-168.3696283,0.00013349,2]
[419075932,1774836643339,-500.0,0.00013349,2]
[419075933,1774836643349,-270.93524751,0.00013349,2]
[419075934,1774836643359,-500.0,0.00013349,2]
[419075935,1774836643369,-241.96259525,0.00013349,2]
[419075936,1774836643379,-209.4559228,0.0001335,2]
[419075937,1774836643389,-735685.18352523,0.0001335,2]
[419075938,1774836643412,-508.3388158,0.0001335,2]
[419075939,1774836643740,-433.67693361,0.0001335,2]
[419075940,1774836643752,-1559.99999991,0.0001335,2]
[419075941,1774836643768,-693.61341159,0.0001335,2]
[419075942,1774836643907,-185.5039429,0.0001,2]
[419075943,1774836643916,-364.25016769,0.000107,2]
[419075944,1774836643926,-105.22810536,0.0001335,2]
[419075945,1774836644125,-71689.10855358,0.0001335,2]
[419076015,1774836646467,-1120.04012998,0.0001335,2]
[419076016,1774836646576,-2393.12166115,0.0001335,2]
[419076018,1774836646698,-500.0,0.0001335,2]
[419076019,1774836646711,-507.5,0.0001335,2]
[419076025,1774836662774,1200.0,8.576e-05,2]
[419076026,1774836668032,3800.01,7.945e-05,2]
[419076027,1774836668067,146.129992,7.945e-05,2]
[419076029,1774836726862,180.0,7.945e-05,3]
[419076030,1774836728408,1210.0,7.765e-05,2]
[419076031,1774836728687,167.0,7.945e-05,3]
[419076032,1774836728916,1100.0,7.99e-05,2]
[419076033,1774836729469,840.0,8.172e-05,2]
[419076034,1774836730006,1200.0,8.353e-05,2]
[419076035,1774836730516,594.22,8.484e-05,2]
[419076036,1774836785277,180.0,8.484e-05,3]
[419076037,1774836787000,167.0,8.484e-05,3]
[419076038,1774836846058,167.0,8.484e-05,3]
[419076039,1774836847468,300.0,8.9e-05,3]
[419076040,1774836849309,700.0,9e-05,3]
[419076041,1774836849656,312.27,0.00010398,30]
[419076042,1774836949293,-743.13,8.678e-05,2]
[419076043,1774836949332,-250.0,8.715e-05,2]
[419076044,1774836949370,-6.87,8.752e-05,2]
[419076045,1774836950407,-1000.0,8.752e-05,2]
[419076046,1774836951285,-260.9,8.752e-05,2]
[419076047,1774836951318,-150.0,8.752e-05,2]
[419076048,1774836951351,-165.7275915,8.752e-05,2]
[419076049,1774836951384,-250.0,8.794e-05,2]
[419076050,1774836951417,-173.3724085,8.823e-05,2]
[419076051,1774836952140,-326.6275915,8.823e-05,2]
[419076052,1774836952188,-673.3724085,8.846e-05,2]
[419076053,1774836957977,-526.6275915,8.846e-05,2]
[419076054,1774836958001,-264.0,8.846e-05,2]
[419076055,1774836958023,-209.3724085,8.846e-05,2]
[419076056,1774836962274,-90.6275915,8.846e-05,2]
[419076057,1774836962297,-150.0,8.846e-05,2]
[419076058,1774836962322,-300.0,8.846e-05,2]
[419076059,1774836962352,-459.3724085,8.847e-05,2]
[419076060,1774836963497,-40.6275915,8.847e-05,2]
[419076061,1774836963525,-500.0,8.847e-05,2]
[419076062,1774836963552,-459.3724085,8.847e-05,2]
[419076063,1774836965090,-40.6275915,8.847e-05,2]
[419076064,1774836965116,-500.0,8.847e-05,2]
[419076065,1774836965143,-459.3724085,8.847e-05,2]
[419076066,1774836966337,-40.6275915,8.847e-05,2]
[419076067,1774836966366,-500.0,8.847e-05,2]
[419076068,1774836966394,-459.3724085,8.847e-05,2]
[419076069,1774836969594,-40.6275915,8.847e-05,2]
[419076070,1774836969622,-500.0,8.847e-05,2]
[419076071,1774836969650,-459.3724085,8.847e-05,2]
[419076072,1774836974945,-40.6275915,8.847e-05,2]
[419076073,1774836974975,-500.0,8.847e-05,2]
[419076074,1774836975005,-459.3724085,8.847e-05,2]
[419076075,1774836976147,-39.78948167,8.847e-05,2]
[419076076,1774836976174,-500.0,8.847e-05,2]
[419076077,1774836976201,-460.21051833,8.847e-05,2]
[419076078,1774836978082,-39.78948167,8.847e-05,2]
[419076079,1774836978111,-500.0,8.847e-05,2]
[419076080,1774836978132,-199.42460315,8.847e-05,2]
[419076081,1774836978167,-260.78591518,8.847e-05,2]
[419076082,1774836979473,-239.21408482,8.847e-05,2]
[419076083,1774836979500,-500.0,8.847e-05,2]
[419076084,1774836979527,-260.78591518,8.847e-05,2]
[419076085,1774836981785,-239.21408482,8.847e-05,2]
[419076086,1774836981806,-298.9734377,8.847e-05,2]
[419076087,1774836981833,-461.81247748,8.847e-05,2]
[419076088,1774836983135,-38.18752252,8.847e-05,2]
[419076089,1774836983163,-500.0,8.847e-05,2]
[419076090,1774836983192,-461.81247748,8.847e-05,2]
[419076091,1774836984600,-38.18752252,8.847e-05,2]
[419076092,1774836984628,-500.0,8.847e-05,2]
[419076093,1774836984656,-461.81247748,8.847e-05,2]
[419076094,1774836987083,-38.18752252,8.847e-05,2]
[419076095,1774836987106,-500.0,8.847e-05,2]
[419076096,1774836987129,-409.19828528,8.847e-05,2]
[419076097,1774836987158,-52.6141922,8.847e-05,2]
[419076098,1774836989404,-447.3858078,8.847e-05,2]
[419076099,1774836989435,-500.0,8.847e-05,2]
[419076100,1774836989465,-52.6141922,8.847e-05,2]
[419076101,1774837002089,-447.3858078,8.847e-05,2]
[419076102,1774837002116,-500.0,8.847e-05,2]
[419076103,1774837002140,-2.6141922,8.847e-05,2]
[419076106,1774837451265,1323.27,4.565e-05,2]
[419076107,1774837451321,1323.27,4.805e-05,2]
[419076108,1774837451379,1323.27,5.045e-05,2]
[419076109,1774837451471,1323.27,5.286e-05,2]
[419076110,1774837451687,1323.27,5.526e-05,2]
[419076111,1774837452108,1323.27,5.766e-05,2]
[419076112,1774837452308,1323.27,6.006e-05,2]
[419076113,1774837452501,737.12,6.247e-05,2]
[419076114,1774837452526,586.15,6.247e-05,2]
[419076115,1774837452723,1323.27,6.487e-05,2]
[419076116,1774837452930,1323.27,6.727e-05,2]
[419076117,1774837453130,1323.27,6.967e-05,2]
[419076118,1774837453725,1323.27,7.208e-05,2]
[419076119,1774837453788,1323.27,7.448e-05,2]
[419076120,1774837453951,1323.27,7.688e-05,2]
[419076121,1774837454163,1323.27,7.928e-05,2]
[419076122,1774837454372,1323.27,8.168e-05,2]
[419076123,1774837454580,1323.27,8.409e-05,2]
[419076124,1774837463404,824.6,6.472e-05,2]
[419076125,1774837589190,205.6,6.062e-05,2]
[419076126,1774837589214,1233.15,6.062e-05,2]
[419076127,1774837591524,1680.0,6.659e-05,2]
[419076128,1774837591729,1616.22,7.26e-05,2]
[419076129,1774837627124,700.0,8.9e-05,3]
[419076130,1774837627830,1500.0,9e-05,3]
[419076131,1774837640886,420.0,0.0002,120]
[419076132,1774837646686,308.3,0.00010095,30]
[419076133,1774837653563,361.64,6.608e-05,2]
[419076134,1774837654116,109.0,7.253e-05,2]
[419076135,1774837654140,491.0,7.253e-05,2]
[419076136,1774837655179,684.27,7.861e-05,2]
[419076137,1774837716200,674.86,7.361e-05,2]
[419076138,1774837752378,1849.27,8.279e-05,2]
[419076139,1774837756634,200.0,8.268e-05,2]
[419076143,1774837832007,-264.5178,8.648e-05,2]
[419076144,1774837832017,-240.0,8.648e-05,2]
[419076145,1774837832027,-1323.27,8.649e-05,2]
[419076146,1774837832037,-150.0,8.649e-05,2]
[419076147,1774837832049,-1200.0,8.671e-05,2]
[419076148,1774837832059,-213.615,8.672e-05,2]
[419076149,1774837832069,-3716.672,8.672e-05,2]
[419076150,1774837832079,-300.0,8.747e-05,2]
[419076151,1774837832088,-150.0,8.747e-05,2]
[419076152,1774837832099,-240.87796198,8.748e-05,2]
[419076153,1774837832108,-477.4583,8.748e-05,2]
[419076154,1774837832119,-3371.2349,8.748e-05,2]
[419076155,1774837832130,-372.769,8.748e-05,2]
[419076156,1774837832141,-5268.6384,8.748e-05,2]
[419076157,1774837832151,-10000.01,8.748e-05,2]
[419076158,1774837832160,-500.73138201,8.823e-05,2]
[419076159,1774837832169,-500.43591004,8.823e-05,2]
[419076160,1774837832179,-500.0,8.823e-05,2]
[419076161,1774837832188,-549.26906616,8.823e-05,2]
[419076162,1774837832198,-500.36907193,8.823e-05,2]
[419076163,1774837832208,-501.68785901,8.823e-05,2]
[419076164,1774837832217,-505.11749629,8.823e-05,2]
[419076165,1774837832226,-93817.629192,8.847e-05,2]
[419076166,1774837832235,-500.0,8.847e-05,2]
[419076167,1774837832245,-500.0,8.847e-05,2]
[419076168,1774837832254,-500.0,8.847e-05,2]
[419076169,1774837832264,-500.0,8.847e-05,2]
[419076170,1774837832274,-500.0,8.847e-05,2]
[419076171,1774837832283,-500.0,8.847e-05,2]
[419076172,1774837832293,-500.0,8.847e-05,2]
[419076173,1774837832303,-500.0,8.847e-05,2]
[419076174,1774837832314,-500.0,8.847e-05,2]
[419076175,1774837832323,-500.0,8.847e-05,2]
[419076176,1774837832333,-500.0,8.847e-05,2]
[419076177,1774837832342,-500.0,8.847e-05,2]
[419076178,1774837832352,-500.0,8.847e-05,2]
[419076179,1774837832362,-500.0,8.847e-05,2]
[419076180,1774837832372,-500.0,8.847e-05,2]
[419076181,1774837832382,-500.0,8.847e-05,2]
[419076182,1774837832391,-500.0,8.847e-05,2]
[419076183,1774837832401,-500.0,8.847e-05,2]
[419076184,1774837832411,-500.0,8.847e-05,2]
[419076185,1774837832420,-500.0,8.847e-05,2]
[419076186,1774837832430,-500.0,8.847e-05,2]
[419076187,1774837832440,-500.0,8.847e-05,2]
[419076188,1774837832449,-500.0,8.847e-05,2]
[419076189,1774837832459,-500.0,8.847e-05,2]
[419076190,1774837832469,-500.0,8.847e-05,2]
[419076191,1774837832478,-500.0,8.847e-05,2]
[419076192,1774837832488,-500.0,8.847e-05,2]
[419076193,1774837832498,-500.0,8.847e-05,2]
[419076194,1774837832507,-330.72411816,8.847e-05,2]
[419076195,1774837832517,-500.0,8.847e-05,2]
[419076196,1774837832527,-500.0,8.847e-05,2]
[419076197,1774837832536,-500.0,8.847e-05,2]
[419076198,1774837832546,-500.0,8.847e-05,2]
[419076199,1774837832556,-500.0,8.847e-05,2]
[419076200,1774837832566,-213.45375666,8.847e-05,2]
[419076201,1774837832576,-500.0,8.847e-05,2]
[419076202,1774837832585,-500.0,8.847e-05,2]
[419076203,1774837832595,-500.0,8.847e-05,2]
[419076204,1774837832604,-375.37730161,8.847e-05,2]
[419076205,1774837832614,-221.1268,8.848e-05,2]
[419076206,1774837832623,-1323.27,8.889e-05,2]
[419076207,1774837832633,-421.55,8.892e-05,2]
[419076208,1774837832642,-1031.33,8.961e-05,2]
[419076209,1774837832652,-9999.99,8.961e-05,2]
[419076210,1774837832662,-150.99,8.961e-05,2]
[419076211,1774837832671,-2495.45,8.961e-05,2]
[419076212,1774837832680,-299.99,8.961e-05,2]
[419076213,1774837832690,-3955.97,8.961e-05,2]
[419076214,1774837832699,-4939.35,8.961e-05,2]
[419076215,1774837832709,-455.0,9.039e-05,2]
[419076216,1774837832718,-246.0,9.048e-05,2]
[419076217,1774837832728,-500.0,9.121e-05,2]
[419076218,1774837832737,-1323.27,9.129e-05,2]
[419076219,1774837832748,-295.04,9.13e-05,2]
[419076220,1774837832758,-171.44,9.143e-05,2]
[419076221,1774837832767,-1852.42,9.204e-05,2]
[419076222,1774837832776,-182.7,9.204e-05,2]
[419076223,1774837832786,-182.7,9.204e-05,2]
[419076224,1774837832795,-182.7,9.204e-05,2]
[419076225,1774837832805,-179.6,9.204e-05,2]
[419076226,1774837832814,-1000.0,9.371e-05,2]
[419076227,1774837832824,-500.0,9.395e-05,2]
[419076228,1774837832833,-502.38986444,9.419e-05,2]
[419076229,1774837832843,-500.0,9.419e-05,2]
[419076230,1774837832852,-500.0,9.419e-05,2]
[419076231,1774837832863,-500.0,9.419e-05,2]
[419076232,1774837832872,-150.0,9.5e-05,2]
[419076233,1774837832882,-5000.0,9.513e-05,2]
[419076234,1774837832892,-250.0,9.513e-05,2]
[419076235,1774837832903,-250.0,9.513e-05,2]
[419076236,1774837832914,-1680.0,9.538e-05,2]
[419076237,1774837832925,-420.0,9.622e-05,2]
[419076238,1774837832936,-255.0,9.622e-05,2]
[419076239,1774837832946,-171.44,9.651e-05,2]
[419076240,1774837832956,-500.0,9.669e-05,2]
[419076241,1774837832965,-1499.45538513,9.675e-05,2]
[419076242,1774837832975,-200.69101128,9.76e-05,2]
[419076243,1774837832984,-500.0,9.836e-05,2]
[419076244,1774837832995,-602.45109965,9.918e-05,2]
[419076245,1774837833004,-535.71,9.939e-05,2]
[419076246,1774837833014,-500.0,9.943e-05,2]
[419076247,1774837833023,-168.11,9.948e-05,2]
[419076248,1774837833032,-151.0,9.951e-05,2]
[419076249,1774837833041,-501.12506457,9.967e-05,2]
[419076250,1774837833051,-511.33110945,9.967e-05,2]
[419076251,1774837833060,-211.0,9.989e-05,2]
[419076252,1774837833070,-211.0,9.989e-05,2]
[419076253,1774837833079,-211.0,9.989e-05,2]
[419076254,1774837833088,-211.0,9.989e-05,2]
[419076255,1774837833097,-211.0,9.989e-05,2]
[419076256,1774837833106,-363.74,0.0001,2]
[419076257,1774837833115,-556.50357273,0.0001,2]
[419076258,1774837833125,-1314.49190584,0.0001,2]
[419076259,1774837833134,-1183.40672058,0.0001,2]
[419076260,1774837833143,-1373.83308253,0.0001,2]
[419076261,1774837833153,-200.0,0.0001,2]
[419076262,1774837833162,-500.0,0.0001,2]
[419076263,1774837833172,-500.0,0.0001,2]
[419076264,1774837833181,-500.0,0.0001,2]
[419076265,1774837833191,-500.0,0.0001,2]
[419076266,1774837833200,-500.0,0.0001,2]
[419076267,1774837833209,-500.0,0.0001,2]
[419076268,1774837833219,-500.0,0.0001,2]
[419076269,1774837833228,-500.0,0.0001,2]
[419076270,1774837833238,-500.0,0.0001,2]
[419076271,1774837833248,-500.0,0.0001,2]
[419076272,1774837833257,-500.0,0.0001,2]
[419076273,1774837833267,-500.0,0.0001,2]
[419076274,1774837833277,-500.0,0.0001,2]
[419076275,1774837833287,-500.0,0.0001,2]
[419076276,1774837833296,-500.0,0.0001,2]
[419076277,1774837833307,-151.0,0.0001,2]
[419076278,1774837833316,-500.0,0.0001,2]
[419076279,1774837833326,-151.0,0.0001,2]
[419076280,1774837833337,-500.0,0.0001,2]
[419076281,1774837833348,-151.0,0.0001,2]
[419076282,1774837833359,-500.0,0.0001,2]
[419076283,1774837833369,-151.0,0.0001,2]
[419076284,1774837833379,-500.0,0.0001,2]
[419076285,1774837833388,-151.0,0.0001,2]
[419076286,1774837833399,-500.0,0.0001,2]
[419076287,1774837833409,-151.0,0.0001,2]
[419076288,1774837833418,-500.0,0.0001,2]
[419076289,1774837833429,-151.0,0.0001,2]
[419076290,1774837833439,-500.0,0.0001,2]
[419076291,1774837833450,-151.0,0.0001,2]
[419076292,1774837833460,-151.0,0.0001,2]
[419076293,1774837833469,-151.0,0.0001,2]
[419076294,1774837833479,-151.0,0.0001,2]
[419076295,1774837833488,-151.0,0.0001,2]
[419076296,1774837833498,-151.0,0.0001,2]
[419076297,1774837833509,-151.0,0.0001,2]
[419076298,1774837833519,-151.0,0.0001,2]
[419076299,1774837833530,-151.0,0.0001,2]
[419076300,1774837833540,-151.0,0.0001,2]
[419076301,1774837833550,-151.0,0.0001,2]
[419076302,1774837833560,-151.0,0.0001,2]
[419076303,1774837833569,-151.0,0.0001,2]
[419076304,1774837833579,-151.0,0.0001,2]
[419076305,1774837833588,-298.09704378,0.0001,2]
[419076306,1774837833598,-1443.27779277,0.0001,2]
[419076307,1774837833609,-151.0,0.0001,2]
[419076308,1774837833618,-16697.03092267,0.0001011,2]
[419076309,1774837833633,-2424.07895351,0.0001011,2]
[419076310,1774837833644,-344.81,0.0001011,2]
[419076311,1774837833655,-2800.96661148,0.0001011,2]
[419076312,1774837833667,-4212.56134968,0.0001011,2]
[419076313,1774837833679,-1635.36487997,0.0001011,2]
[419076314,1774837833691,-257.8752,0.0001011,2]
[419076315,1774837833703,-254.14013485,0.0001011,2]
[419076316,1774837833715,-369.98931999,0.0001011,2]
[419076317,1774837833726,-1632.70955247,0.0001011,2]
[419076318,1774837833737,-3016.37873719,0.0001011,2]
[419076319,1774837833752,-1167.00146,0.0001011,2]
[419076320,1774837833764,-769.94180869,0.0001011,2]
[419076328,1774837838466,-867.29626824,0.0001011,2]
[419076329,1774837838478,-1441.65226089,0.0001011,2]
[419076330,1774837838496,-325.02024,0.0001011,2]
[419076331,1774837838508,-2615.92995068,0.0001011,2]
[419076339,1774837840000,-4003.85013059,0.0001011,2]
[419076340,1774837840010,-8815.00999373,0.0001011,2]
[419076341,1774837840022,-8947.21879473,0.0001011,2]
[419076342,1774837840034,-8943.78386462,0.0001011,2]
[419076343,1774837840047,-9077.54866152,0.0001011,2]
[419076344,1774837840611,-0.4,0.0001011,2]
[419076345,1774837840623,-7298.28725334,0.0001011,2]
[419076346,1774837840643,-5898.78284316,0.0001011,2]
[419076347,1774837840652,-166.66,0.00010144,2]
[419076348,1774837840662,-171.44,0.00010159,2]
[419076349,1774837840671,-500.0,0.00010217,2]
[419076350,1774837841058,-56275.03,0.00010246,2]
[419076351,1774837841070,-756.59196051,0.0001026,2]
[419076352,1774837841080,-363.74,0.00010274,2]
[419076353,1774837841090,-166.66,0.00010478,2]
[419076354,1774837841099,-2351.0,0.00010492,2]
[419076355,1774837841109,-500.0,0.00010548,2]
[419076356,1774837841118,-363.74,0.00010548,2]
[419076357,1774837841127,-200.0,0.00010548,2]
[419076358,1774837841136,-152.82264291,0.00010548,2]
[419076359,1774837841144,-587.0,0.00010584,2]
[419076360,1774837841153,-433.0,0.00010584,2]
[419076361,1774837841162,-434.24,0.00010641,2]
[419076362,1774837841172,-171.44,0.00010667,2]